Cogmind - Beta 12 X4 @@@ ROGUE MODE // 2022.12.04 @ 00:20:13 Player: Lunatic Blue Result: Destroyed by Alpha 7 with Multirail Performance ------------- Evolutions (8) 4000 Regions Visited (24) 4800 Robots Destroyed (46) 230 Value Destroyed (1311) 1311 Prototype IDs (31) 620 Alien Tech Used (11) 2200 Bonus (11416) 11416 TOTAL SCORE: 24577 Bonus ------- Follower Combat Kills 772 Entered DSFs 500 Met Zhirov 300 Met Warlord at Base 500 MAIN.C Attacked Warlord 500 Found Hidden Lab 3000 Used Core Reset Matrix 3000 Scanned by Researcher 500 Pursued by Intercept 500 Met Sigix 2000 Friendly Fire -156 Cogmind --------- Core Integrity 0/1450 Matter 269/425 Energy 107/350 System Corruption 6% Temperature Cool (0) Movement Core (50) Location -2/Section 7 Parts ------- > --- POWER (2) -------- (None) > --- PROPULSION (8) --- (None) > --- UTILITY (11) ----- Enhanced Optical Array Transport Network Coupler Graphene Brace > --- WEAPON (2) ------- RU-N14's Throwing Claymores v3 > --- INVENTORY (5) ---- (None) Peak State ------------ > --- POWER ------------ Light Neutrino Core Micro Fission Core > --- PROPULSION ------- Q-thruster Q-thruster Q-thruster Q-thruster Impulse Thruster Array > --- UTILITY ---------- Small Storage Unit Enhanced Optical Array Improved Signal Interpreter Terrain Scan Processor Transport Network Coupler 0b10 Decoder Chip [Generic] Core Analyzer Deep Network Scanner System Shield > --- WEAPON ----------- Core Stripper > --- INVENTORY -------- Micro Fission Core Antimatter Reactor Transmission Jammer Transdimensional Reconstructor Hypervelocity EM Gauss Rifle RU-N14's Throwing Claymores v3 RU-N14's Throwing Claymores v3 Great Axe [Rating: 129] Favorites ----------- Power Light Fission Core Engine Light Angular Momentum Engine Power Core Light Fission Core Reactor Light Quantum Reactor Propulsion Nuclear Pulse Thruster Leg Aluminum Leg Wheel Compact Wheel Hover Unit Combat Gravmag System Flight Unit Nuclear Pulse Thruster Utility Transport Network Coupler Device Improved Terrain Scanner Storage Medium Storage Unit Processor Transport Network Coupler Hackware System Shield Protection Light Armor Plating Weapon Heavy Assault Rifle Energy Gun Small Laser Energy Cannon Particle Cannon Ballistic Gun Heavy Assault Rifle Launcher Improved Grenade Launcher Special Weapon RU-N14's Throwing Claymores v3 Impact Weapon Mace Slashing Weapon Great Axe Piercing Weapon Force Lance Build | -11 -10 -9 -8 -7 -6 -6 -5 -5 -5 -5 -5 -5 -4 -4 -4 -4 -4 -3 -3 -3 -3 -2 -2 -2 ------- Run | Scr Mat Mat Mat Fac Fac DSF Fac Was Fac Upp Upp Zhi Pro Fac Upp Upp War Pro Res Arm Lab Res Qua Sec Slots Evolved 16 | . . 2 2 2 2 . 2 . . . . . . 2 . . . . 2 . . 2 . . Power 1 | . . . . . . . . . . . . . . . . . . . . . . 1 . . Propulsion 6 | . . 2 1 . 1 . . . . . . . . 1 . . . . 1 . . . . . Utility 9 | . . . 1 2 1 . 2 . . . . . . 1 . . . . 1 . . 1 . . Weapon . | . . . . . . . . . . . . . . . . . . . . . . . . . Parts Attached 171 | 7 12 27 7 4 3 4 20 1 8 2 2 5 4 6 8 1 9 2 1 . 8 8 10 12 Power 26 | 1 1 4 . 2 . 1 4 . . 1 . . . 3 . 1 2 . . . 1 . 3 2 Engine 6 | 1 1 2 . 1 . . . . . . . . . . . 1 . . . . . . . . Core 16 | . . 2 . 1 . 1 4 . . 1 . . . 3 . . . . . . 1 . 2 1 Reactor 4 | . . . . . . . . . . . . . . . . . 2 . . . . . 1 1 Propulsion 58 | 3 7 10 1 . . . 7 1 5 . . . 3 1 5 . 2 1 1 . . 5 3 3 Treads . | . . . . . . . . . . . . . . . . . . . . . . . . . Leg 14 | 2 6 6 . . . . . . . . . . . . . . . . . . . . . . Wheel 2 | 1 1 . . . . . . . . . . . . . . . . . . . . . . . Hover 5 | . . . . . . . 4 1 . . . . . . . . . . . . . . . . Flight 37 | . . 4 1 . . . 3 . 5 . . . 3 1 5 . 2 1 1 . . 5 3 3 Utility 39 | 1 1 6 3 2 3 . 6 . 2 . 1 4 . 1 2 . 1 . . . 3 1 . 2 Device 15 | . 1 3 . . 1 . 1 . 1 . . 3 . 1 2 . . . . . . . . 2 Storage 6 | 1 . 1 1 . . . 1 . 1 . . . . . . . . . . . 1 . . . Processor 10 | . . . 1 1 1 . 4 . . . . 1 . . . . 1 . . . . 1 . . Hackware 4 | . . . 1 1 . . . . . . 1 . . . . . . . . . 1 . . . Protection 4 | . . 2 . . 1 . . . . . . . . . . . . . . . 1 . . . Artifact . | . . . . . . . . . . . . . . . . . . . . . . . . . Weapon 48 | 2 3 7 3 . . 3 3 . 1 1 1 1 1 1 1 . 4 1 . . 4 2 4 5 Energy Gun 12 | 2 2 1 . . . . . . . . . . . . . . 2 . . . 2 1 1 1 Energy Cannon 2 | . . 2 . . . . . . . . . . . . . . . . . . . . . . Ballistic Gun 16 | . 1 4 2 . . 2 1 . 1 1 . 1 1 . 1 . 1 . . . . . . . Ballistic Cannon . | . . . . . . . . . . . . . . . . . . . . . . . . . Launcher 1 | . . . . . . 1 . . . . . . . . . . . . . . . . . . Special Weapon 8 | . . . . . . . . . . . . . . . . . 1 . . . 2 1 . 4 Impact Weapon 5 | . . . 1 . . . 2 . . . 1 . . . . . . . . . . . 1 . Slashing Weapon 3 | . . . . . . . . . . . . . . . . . . 1 . . . . 2 . Piercing Weapon 1 | . . . . . . . . . . . . . . 1 . . . . . . . . . . Special Melee Weapon . | . . . . . . . . . . . . . . . . . . . . . . . . . Unidentified Prototypes 18 | . . 2 . . . . . . 1 . . 2 . . . . 4 . . 1 5 . 2 1 Parts Lost 70 | . 6 8 . . . 1 10 . 1 . . . . . 8 . 2 . 1 . 11 . 7 15 Power 8 | . 1 1 . . . 1 . . . . . . . . . . . . . . 1 . 1 3 Propulsion 34 | . 2 2 . . . . 6 . . . . . . . 5 . 1 . 1 . 7 . 4 6 Utility 16 | . . 4 . . . . 3 . . . . . . . 2 . . . . . 2 . 1 4 Weapon 12 | . 3 1 . . . . 1 . 1 . . . . . 1 . 1 . . . 1 . 1 2 Highest Loss Streak 11 | . 5 3 . . . 1 5 . 1 . . . . . 8 . 2 . 1 . 11 . 4 8 To Critical Strikes . | . . . . . . . . . . . . . . . . . . . . . . . . . Average Slot Usage (%) 82 | . 89 77 96 99 93 92 85 91 88 89 94 88 94 94 83 89 90 99 92 . 50 47 68 48 Engine 2 | . 13 2 9 2 . . . . . . . . . . . 4 3 . . . . . . . Core 3 | . . 8 . 4 6 5 3 5 5 5 5 5 5 5 5 . . . . . 2 4 5 2 Leg 5 | . 24 25 . . . . . . . . . . . . . . . . . . . . . . Hover 1 | . . . . . . . 8 20 5 . . . . . . . . . . . . . . . Flight 20 | . . 3 42 38 33 33 20 11 24 29 29 29 29 31 27 31 31 36 35 . 5 7 20 13 Device 5 | . 8 5 . . . . 4 5 7 11 11 6 5 10 6 10 8 5 4 . 1 . . 3 Storage 5 | . 14 8 9 7 6 6 5 5 5 5 5 5 5 5 5 5 5 5 4 . 4 4 4 1 Processor 17 | . . . 8 15 15 13 20 29 26 23 18 21 23 21 21 21 21 26 23 . 23 21 23 16 Hackware 6 | . . . 9 15 13 13 7 5 5 5 9 11 11 10 10 10 10 10 9 . 6 8 8 4 Protection 1 | . . 5 . . 4 6 1 . . . . . . . . . . . . . . . . . Energy Gun 2 | . 25 2 . . . . . . . . . . . . . . 2 . . . . . 1 1 Ballistic Gun 4 | . . 14 16 7 6 6 3 5 4 6 6 . 5 5 2 . . 5 4 . 1 . . . Naked Turns . | . . . . . . . . . . . . . . . . . . . . . . . . . Heaviest Build 36 | 10 15 24 19 21 23 24 23 18 23 28 28 26 27 30 31 31 32 36 36 36 36 10 30 31 Greatest Support 55 | 20 20 40 24 24 24 24 46 45 49 37 37 37 40 33 34 34 35 39 43 39 39 48 55 55 Greatest Overweight (x) 4 | . 1 4 . . . . . . . . . . . . . . 1 . . . 3 3 . 1 Average Overweight (x) . | . . . . . . . . . . . . . . . . . . . . . 1 . . . Largest Inventory Capacity 10 | 8 8 8 10 10 10 10 10 8 10 10 10 10 10 10 10 10 10 10 10 10 10 8 8 8 Average Capacity 8 | 6 8 7 9 10 10 10 8 8 9 10 10 10 10 10 10 10 10 10 10 10 8 8 8 6 Most Carried 10 | 3 8 8 10 10 10 10 10 8 10 10 10 10 10 9 9 7 10 10 9 8 9 8 8 7 Average Carried 7 | 1 5 6 8 9 9 10 8 7 9 10 10 9 10 8 6 6 9 10 9 8 8 8 7 4 Final Capacity 10 | 8 8 8 10 10 10 10 8 8 10 10 10 10 10 10 10 10 10 10 10 10 8 8 8 5 Final Carried 10 | 3 7 6 10 10 10 10 6 7 10 10 10 10 10 9 6 7 10 10 9 8 8 8 7 . Class Distribution -------------------- 18% | Scavenger-Scout 14% | Scavenger-Mutant 14% | Hacker-Sprinter 13% | Scout 9% | Derelict-Scout 5% | Hacker-Mutant 5% | Mutant 4% | Scavenger-Sprinter 4% | Hacker-Scout 4% | Alien-Mutant 3% | Derelict-Assassin Dominant Class ---------------- Scavenger-Mutant | -10/Materials Scavenger-Mutant | -9/Materials Scavenger-Sprinter | -8/Materials Hacker-Sprinter | -7/Factory Hacker-Sprinter | -6/Factory Hacker-Sprinter | -6/DSF Scout | -5/Factory Scout | -5/Waste Scout | -5/Factory Scavenger-Scout | -5/Upper Caves Hacker-Scout | -5/Upper Caves Hacker-Scout | -5/Zhirov Hacker-Scout | -4/Proximity Caves Derelict-Scout | -4/Factory Derelict-Scout | -4/Upper Caves Derelict-Scout | -4/Upper Caves Derelict-Assassin | -4/Warlord Scavenger-Scout | -3/Proximity Caves Scavenger-Scout | -3/Research Scavenger-Scout | -3/Armory Hacker-Mutant | -3/Lab Hacker-Mutant | -2/Research Hacker-Sprinter | -2/Quarantine Alien-Mutant | -2/Section 7 Resources | -11 -10 -9 -8 -7 -6 -6 -5 -5 -5 -5 -5 -5 -4 -4 -4 -4 -4 -3 -3 -3 -3 -2 -2 -2 ----------- Run | Scr Mat Mat Mat Fac Fac DSF Fac Was Fac Upp Upp Zhi Pro Fac Upp Upp War Pro Res Arm Lab Res Qua Sec Matter Collected 2213 | 229 96 412 . 10 . 22 208 305 188 20 19 . 128 104 40 20 80 30 . . . . 296 6 Remotely . | . . . . . . . . . . . . . . . . . . . . . . . . . Salvage Created 1616 | . 184 707 . 33 . . 237 . 91 . . . 105 21 93 74 . . . . . . . 71 Parts 83 | . 9 38 . 1 . . 10 . 3 . . . 6 . 10 5 . . . . . . . 1 Haulers Intercepted 5 | . . 3 . . . . 1 . 1 . . . . . . . . . . . . . . . Recyclers Shooed 2 | . . 1 . . . . 1 . . . . . . . . . . . . . . . . . Parts Field Recycled . | . . . . . . . . . . . . . . . . . . . . . . . . . Retrieved Matter . | . . . . . . . . . . . . . . . . . . . . . . . . . Parts Self-Destructed 30 | . . . . . . . . . . 17 . . 5 . 8 . . . . . . . . . Prevented . | . . . . . . . . . . . . . . . . . . . . . . . . . Kills | -11 -10 -9 -8 -7 -6 -6 -5 -5 -5 -5 -5 -5 -4 -4 -4 -4 -4 -3 -3 -3 -3 -2 -2 -2 ------- Run | Scr Mat Mat Mat Fac Fac DSF Fac Was Fac Upp Upp Zhi Pro Fac Upp Upp War Pro Res Arm Lab Res Qua Sec Combat Hostiles Destroyed 31 | . 6 10 . . . . 4 . . . . . 4 . 4 . . . . . 1 . . 2 Melee 4 | . . . . . . . . . . . . . . . 4 . . . . . . . . . Guns 23 | . 6 9 . . . . 4 . . . . . 4 . . . . . . . . . . . Cannons 2 | . . 1 . . . . . . . . . . . . . . . . . . 1 . . . AOE 2 | . . . . . . . . . . . . . . . . . . . . . . . . 2 Classes Destroyed 10 | . 2 5 . 1 . . . . . . . . . . . 1 . . . . . . . 1 Worker 2 | . . 2 . . . . . . . . . . . . . . . . . . . . . . Builder 2 | . . . . 1 . . 1 . . . . . . . . . . . . . . . . . Hauler 5 | . . 3 . . . . 1 . 1 . . . . . . . . . . . . . . . Recycler 1 | . . 1 . . . . . . . . . . . . . . . . . . . . . . Operator 5 | . . 2 . 1 . . . . . . . . . 2 . . . . . . . . . . Swarmer 14 | . 2 . . . . . 4 . . . . . 4 . 4 . . . . . . . . . Grunt 11 | . 4 7 . . . . . . . . . . . . . . . . . . . . . . Sentry 3 | . . 3 . . . . . . . . . . . . . . . . . . . . . . Hunter 2 | . . . . . . . . . . . . . . . . . . . . . . . . 2 Samaritan 2 | . . . . . . . . . . . . . . . . 2 . . . . . . . . Best Kill Streak 5 | . 2 5 . 1 . . 3 . 1 . . . 4 2 3 . . . . . 1 . . 2 Combat Bots Only 5 | . 2 5 . . . . 3 . . . . . 4 . 3 . . . . . 1 . . 2 Max Kills in Single Turn 1 | . 1 1 . 1 . . 1 . 1 . . . 1 1 1 1 . . . . 1 . . 1 Gunslinging . | . . . . . . . . . . . . . . . . . . . . . . . . . Exploded 1 | . . . . . . . . . . . . . . . . . . . . . . . . 1 Melee 1 | . . . . . . . . . . . . . . . 1 . . . . . . . . . Uniques/NPCs Destroyed 1 | . . . . . . . . . . . . . . . . . . . . . 1 . . . A5 (-3/Lab) Combat | -11 -10 -9 -8 -7 -6 -6 -5 -5 -5 -5 -5 -5 -4 -4 -4 -4 -4 -3 -3 -3 -3 -2 -2 -2 -------- Run | Scr Mat Mat Mat Fac Fac DSF Fac Was Fac Upp Upp Zhi Pro Fac Upp Upp War Pro Res Arm Lab Res Qua Sec Damage Taken 8420 | . 963 935 119 . . 310 1130 . 93 . 42 . 189 . 555 . 108 . 150 . 878 28 821 2099 Core 2556 | . 172 187 30 . . 86 268 . . . . . 29 . 160 . 44 . 66 . 228 . 178 1108 Absorbed by Shields . | . . . . . . . . . . . . . . . . . . . . . . . . . Redirected to Shielding 121 | . . . . . . . 121 . . . . . . . . . . . . . . . . . Regen/Repaired (Parts) 14 | . . . . . . . . . . . . . . . . . 14 . . . . . . . Core Remaining (%) 77 | 100 31 53 94 100 . 89 . . . . . . 70 . . . . 82 . . 82 . . . Volleys Fired 247 | . 45 91 5 . . 1 16 1 20 . . . 12 . . . 1 . . . 43 . 9 3 Largest 2 | . 2 2 2 . . 2 1 1 1 . . . 1 . . . 2 . . . 2 . 1 2 Hottest 133 | . 105 133 46 . . 59 33 33 33 . . . 35 . . . 80 . . . 38 . 40 40 Shots Fired 308 | . 68 110 10 . . 2 16 1 22 1 . . 11 . . . 2 . . . 52 . 9 4 Gun 284 | . 68 102 10 . . 1 16 1 22 1 . . 11 . . . 2 . . . 40 . 9 1 Cannon 8 | . . 8 . . . . . . . . . . . . . . . . . . . . . . Launcher 1 | . . . . . . 1 . . . . . . . . . . . . . . . . . . Special 15 | . . . . . . . . . . . . . . . . . . . . . 12 . . 3 Kinetic 201 | . 2 97 10 . . 1 16 1 22 1 . . 11 . . . . . . . 40 . . . Thermal 81 | . 66 13 . . . . . . . . . . . . . . 2 . . . . . . . Explosive 16 | . . . . . . 1 . . . . . . . . . . . . . . 12 . . 3 Electromagnetic 10 | . . . . . . . . . . . . . . . . . . . . . . . 9 1 Robot Hit Streak 13 | . 13 10 2 . . . 3 2 10 . . . 2 . . . 3 . . . 10 . 2 2 Robot Miss Streak 6 | . 4 6 3 . . 2 2 . 2 . . . 2 . . . . . . . 4 . 1 . Penetration Max 1 | . . . . . . . 1 . 1 . . . . . . . . . . . . . . . Secondary Targets 1 | . 1 . . . . . . . . . . . . . . . . . . . . . . . Max Gunslinging Chain 1 | . 1 . . . . . . . . . . . . . . . . . . . . . . . Shots Hit Robots 207 | . 40 74 3 2 . . 13 1 16 . . . 5 2 6 2 2 . 2 . 33 . 4 2 Core Hits 87 | . 11 33 . . . . 6 . 7 . . . 4 . 3 1 1 . . . 12 . . 9 Critical Kills . | . . . . . . . . . . . . . . . . . . . . . . . . . Critical Parts Destroyed 3 | . . . . . . . 2 . . . . . . . . . . . . . 1 . . . Critical Strikes 8 | . 2 . . . . . 2 . . . . . . . 3 . . . . . 1 . . . Burn 2 | . 2 . . . . . . . . . . . . . . . . . . . . . . . Destroy 2 | . . . . . . . 1 . . . . . . . . . . . . . 1 . . . Smash 1 | . . . . . . . 1 . . . . . . . . . . . . . . . . . Impale 3 | . . . . . . . . . . . . . . . 3 . . . . . . . . . Melee Attacks 67 | . . . 3 8 . . 18 . . . . . . 5 10 2 . 7 4 . 5 . 5 . Impact 32 | . . . 3 8 . . 18 . . . . . . 3 . . . . . . . . . . Slashing 21 | . . . . . . . . . . . . . . . . . . 7 4 . 5 . 5 . Piercing 14 | . . . . . . . . . . . . . . 2 10 2 . . . . . . . . Sneak Attacks 4 | . . . . 1 . . 1 . . . . . . . . 2 . . . . . . . . Combat Hostiles . | . . . . . . . . . . . . . . . . . . . . . . . . . Follow-up Attacks . | . . . . . . . . . . . . . . . . . . . . . . . . . Damage Inflicted 6318 | . 484 1069 45 105 . 169 398 24 603 . . . 137 108 289 218 32 . 41 . 1793 . 32 771 Guns 3067 | . 484 968 45 . . . 248 24 603 . . . 137 . . . 32 . . . 524 . 2 . Cannons 101 | . . 101 . . . . . . . . . . . . . . . . . . . . . . Explosions 1516 | . . . . . . 169 . . . . . . . . . . . . . . 719 . . 628 Melee 941 | . . . . 105 . . 150 . . . . . . 108 289 218 . . 41 . . . 30 . Ramming 30 | . . . . . . . . . . . . . . . . . . . . . . . . 30 Kinetic 2467 | . 8 878 45 . . . 248 24 603 . . . 137 . . . . . . . 524 . . . Thermal 699 | . 476 191 . . . . . . . . . . . . . . 32 . . . . . . . Explosive 1516 | . . . . . . 169 . . . . . . . . . . . . . . 719 . . 628 Electromagnetic 2 | . . . . . . . . . . . . . . . . . . . . . . . 2 . Impact 363 | . . . . 105 . . 150 . . . . . . 108 . . . . . . . . . . Slashing 734 | . . . . . . . . . . . . . . . . . . . 41 . 550 . 30 113 Piercing 507 | . . . . . . . . . . . . . . . 289 218 . . . . . . . . Highest Corruption 12 | . . . . . . . 12 12 12 12 12 12 12 . . . . . . . 9 . 3 6 Average Corruption 9 | . . . . . . . 12 12 12 12 12 12 12 . . . . . . . 7 . 2 4 Corruption Purged . | . . . . . . . . . . . . . . . . . . . . . . . . . Corruption Blocked 42 | . . . . . . . . . . . . . . . . . 2 . . . . . 40 . Effects 62 | . . . . . . . 9 3 14 10 3 1 7 . . . . . . . 8 . . 7 Message Errors 16 | . . . . . . . 2 . 2 5 1 1 1 . . . . . . . 3 . . 1 Matter Fused 10 | . . . . . . . 2 1 2 . 1 . 3 . . . . . . . 1 . . . Heat Flow Errors 5 | . . . . . . . . 1 2 . . . . . . . . . . . 1 . . 1 Energy Discharges 8 | . . . . . . . 1 1 1 1 . . . . . . . . . . 2 . . 2 Parts Rejected 1 | . . . . . . . 1 . . . . . . . . . . . . . . . . . Data Loss (minor) 6 | . . . . . . . . . . 3 1 . 1 . . . . . . . . . . 1 Data Loss (major) 3 | . . . . . . . 1 . . . . . . . . . . . . . . . . 2 Misfires 5 | . . . . . . . . . 4 1 . . . . . . . . . . . . . . Alerts 1 | . . . . . . . . . . . . . 1 . . . . . . . . . . . Misdirections 3 | . . . . . . . 2 . 1 . . . . . . . . . . . . . . . Weapon Failures 4 | . . . . . . . . . 2 . . . 1 . . . . . . . 1 . . . Overload Shots . | . . . . . . . . . . . . . . . . . . . . . . . . . Overflow Damage 330 | . . . . 15 . . 49 . . . . . . 88 37 55 . . . . 77 . . 9 Projectiles 86 | . . . . . . . . . . . . . . . . . . . . . 77 . . 9 Explosions . | . . . . . . . . . . . . . . . . . . . . . . . . . Melee 244 | . . . . 15 . . 49 . . . . . . 88 37 55 . . . . . . . . Knockbacks 3 | . . . . 1 . . . . . . . . . 2 . . . . . . . . . . Impact 3 | . . . . 1 . . . . . . . . . 2 . . . . . . . . . . Kinetic . | . . . . . . . . . . . . . . . . . . . . . . . . . Secondary . | . . . . . . . . . . . . . . . . . . . . . . . . . Self-Inflicted Damage 63 | . . . . . . 33 . . . . . . . . . . . . . . . . . 30 Shots 1 | . . . . . . 1 . . . . . . . . . . . . . . . . . . Rammed . | . . . . . . . . . . . . . . . . . . . . . . . . . Targets Rammed . | . . . . . . . . . . . . . . . . . . . . . . . . . Kicked . | . . . . . . . . . . . . . . . . . . . . . . . . . Crushed . | . . . . . . . . . . . . . . . . . . . . . . . . . Highest Temperature 444 | . 414 444 26 . . . . 259 160 . 10 . . . . . . . 3 . 79 . . 142 Average Temperature 136 | . 170 170 10 . . . . 131 41 . 6 . . . . . . . 3 . 50 . . 44 Received Heat Transfer 1152 | . 435 408 72 . . 9 18 . 18 . 18 . . . 12 . 9 . 9 . . . 54 90 Effects 5 | . 3 1 . . . . . 1 . . . . . . . . . . . . . . . . Shutdowns 3 | . 2 1 . . . . . . . . . . . . . . . . . . . . . . Energy Bleed 1 | . . . . . . . . 1 . . . . . . . . . . . . . . . . Damage (minor) 1 | . 1 . . . . . . . . . . . . . . . . . . . . . . . Siege Activations . | . . . . . . . . . . . . . . . . . . . . . . . . . Robots Corrupted . | . . . . . . . . . . . . . . . . . . . . . . . . . Combat Hostiles . | . . . . . . . . . . . . . . . . . . . . . . . . . Parts Fried 6 | . . . . 4 . . . . . . . . . 2 . . . . . . . . . . Impact Corruptions 6 | . . . . 2 . . 1 . . . . . . 3 . . . . . . . . . . Robots Melted . | . . . . . . . . . . . . . . . . . . . . . . . . . Combat Hostiles . | . . . . . . . . . . . . . . . . . . . . . . . . . Parts Melted 4 | . 4 . . . . . . . . . . . . . . . . . . . . . . . Heat Transferred 1586 | . 1255 295 . . . . . . . . . . . . . . 36 . . . . . . . Parts Sabotaged . | . . . . . . . . . . . . . . . . . . . . . . . . . Parts Stolen . | . . . . . . . . . . . . . . . . . . . . . . . . . Parts Stripped . | . . . . . . . . . . . . . . . . . . . . . . . . . Power Chain Reactions . | . . . . . . . . . . . . . . . . . . . . . . . . . Missiles Intercepted . | . . . . . . . . . . . . . . . . . . . . . . . . . Alert | -11 -10 -9 -8 -7 -6 -6 -5 -5 -5 -5 -5 -5 -4 -4 -4 -4 -4 -3 -3 -3 -3 -2 -2 -2 ------- Run | Scr Mat Mat Mat Fac Fac DSF Fac Was Fac Upp Upp Zhi Pro Fac Upp Upp War Pro Res Arm Lab Res Qua Sec Peak Influence 773 | . 113 238 91 85 41 46 214 65 773 . . . . 144 . . . . 34 12 . 15 218 472 Initial 122 | . . 47 57 . 41 31 31 65 45 . . . . 65 . . . . . 12 . . 8 122 Average 127 | . 45 113 57 45 41 35 96 65 394 . . . . 60 . . . . 10 12 . 2 80 329 Maximum Alert Level 3 | . . 1 . . . . 1 . 3 . . . . . . . . . . . . . 1 2 Low Security (%) 80 | 100 100 88 100 100 100 100 86 100 32 . . . . 100 . . . . 100 100 . 100 87 16 Level 1 11 | . . 11 . . . . 13 . 22 . . . . . . . . . . . . . 12 47 Level 2 5 | . . . . . . . . . 17 . . . . . . . . . . . . . . 35 Level 3 2 | . . . . . . . . . 27 . . . . . . . . . . . . . . . Level 4 . | . . . . . . . . . . . . . . . . . . . . . . . . . Level 5 . | . . . . . . . . . . . . . . . . . . . . . . . . . High Security . | . . . . . . . . . . . . . . . . . . . . . . . . . Max Security . | . . . . . . . . . . . . . . . . . . . . . . . . . Squads Dispatched 23 | . . 3 . 1 . 2 2 . 4 . . . . 2 . . . . 1 . . . 5 3 Investigation 2 | . . . . 1 . . 1 . . . . . . . . . . . . . . . . . Extermination 1 | . . . . . . . . . 1 . . . . . . . . . . . . . . . Reinforcement 17 | . . 3 . . . 2 1 . 3 . . . . 2 . . . . 1 . . . 3 2 Assault . | . . . . . . . . . . . . . . . . . . . . . . . . . Garrison 2 | . . . . . . . . . . . . . . . . . . . . . . . 2 . Intercept 1 | . . . . . . . . . . . . . . . . . . . . . . . . 1 Searches Triggered 1 | . . . . . . . . . . . . . . . . . . . . . . . . 1 Construction Impeded 1 | . . . . . . . . . 1 . . . . . . . . . . . . . . . Haulers Reinforced 1 | . . . . . . . . . 1 . . . . . . . . . . . . . . . Active Scanning Responses . | . . . . . . . . . . . . . . . . . . . . . . . . . Cargo Convoy Interrupts . | . . . . . . . . . . . . . . . . . . . . . . . . . Stealth | -11 -10 -9 -8 -7 -6 -6 -5 -5 -5 -5 -5 -5 -4 -4 -4 -4 -4 -3 -3 -3 -3 -2 -2 -2 --------- Run | Scr Mat Mat Mat Fac Fac DSF Fac Was Fac Upp Upp Zhi Pro Fac Upp Upp War Pro Res Arm Lab Res Qua Sec Distress Signals 10 | . . 1 1 . . . . . 3 . . . . . . . . . . . . 2 . 3 Communications Jammed . | . . . . . . . . . . . . . . . . . . . . . . . . . Distress Signals . | . . . . . . . . . . . . . . . . . . . . . . . . . Times Spotted 221 | . 9 22 6 1 . 9 16 . 7 9 6 . 5 2 22 2 24 2 3 . 1 5 27 43 Peak Tracking Total 17 | . 4 6 4 . . 8 7 . 2 5 6 . 4 1 9 2 8 4 3 . 1 6 10 17 Tactical Retreats 22 | . 1 1 1 . . 2 3 . . . 2 . 1 . 3 . 3 . . . . . 3 2 Traps | -11 -10 -9 -8 -7 -6 -6 -5 -5 -5 -5 -5 -5 -4 -4 -4 -4 -4 -3 -3 -3 -3 -2 -2 -2 ------- Run | Scr Mat Mat Mat Fac Fac DSF Fac Was Fac Upp Upp Zhi Pro Fac Upp Upp War Pro Res Arm Lab Res Qua Sec Traps Triggered 5 | . . . . . . 2 2 . . . . . . . . . . . . . . . . 1 Indirectly . | . . . . . . . . . . . . . . . . . . . . . . . . . Trap Hack Attempts . | . . . . . . . . . . . . . . . . . . . . . . . . . Triggered . | . . . . . . . . . . . . . . . . . . . . . . . . . Disarmed . | . . . . . . . . . . . . . . . . . . . . . . . . . Reprogrammed . | . . . . . . . . . . . . . . . . . . . . . . . . . Reused . | . . . . . . . . . . . . . . . . . . . . . . . . . Traps Extracted . | . . . . . . . . . . . . . . . . . . . . . . . . . Installed . | . . . . . . . . . . . . . . . . . . . . . . . . . Triggered 11 | . . . . . . . . . . . . . . . . . 11 . . . . . . . Machines | -11 -10 -9 -8 -7 -6 -6 -5 -5 -5 -5 -5 -5 -4 -4 -4 -4 -4 -3 -3 -3 -3 -2 -2 -2 ---------- Run | Scr Mat Mat Mat Fac Fac DSF Fac Was Fac Upp Upp Zhi Pro Fac Upp Upp War Pro Res Arm Lab Res Qua Sec Machines Disabled 16 | . . 1 1 1 . . 1 . . . . . . 1 . . . . . . 4 . 1 6 Max in Single Turn 3 | . . 1 1 1 . . 1 . . . . . . 1 . . . . . . 1 . 1 3 Garrison Access 2 | . . . 1 . . . . . . . . . . . . . . . . . . . . 1 Machines Sabotaged . | . . . . . . . . . . . . . . . . . . . . . . . . . Overloaded Fab Kills . | . . . . . . . . . . . . . . . . . . . . . . . . . Hacking | -11 -10 -9 -8 -7 -6 -6 -5 -5 -5 -5 -5 -5 -4 -4 -4 -4 -4 -3 -3 -3 -3 -2 -2 -2 --------- Run | Scr Mat Mat Mat Fac Fac DSF Fac Was Fac Upp Upp Zhi Pro Fac Upp Upp War Pro Res Arm Lab Res Qua Sec Machines Accessed 49 | . 1 2 6 3 1 . 7 . 2 . . 4 . 3 . . 2 1 . . 1 1 4 11 Terminals 34 | . 1 2 5 2 1 . 4 . 1 . . . . 2 . . . 1 . . . 1 4 10 Fabricators 1 | . . . . . . . . . . . . . . 1 . . . . . . . . . . Repair Stations . | . . . . . . . . . . . . . . . . . . . . . . . . . Recycling Units 3 | . . . . 1 . . 2 . . . . . . . . . . . . . . . . . Scanalyzers 2 | . . . . . . . 1 . 1 . . . . . . . . . . . . . . . Garrison Access 2 | . . . 1 . . . . . . . . . . . . . . . . . . . . 1 Total Hacks 174 | . 4 7 29 17 1 . 27 . 3 . . 17 . 15 . . 2 1 . . 19 1 9 22 Successful 114 | . 2 4 18 11 1 . 14 . 1 . . 17 . 6 . . 2 1 . . 19 1 5 12 Failed 60 | . 2 3 11 6 . . 13 . 2 . . . . 9 . . . . . . . . 4 10 Catastrophic 6 | . . . . 3 . . 1 . 1 . . . . . . . . . . . . . . 1 Database Lockouts . | . . . . . . . . . . . . . . . . . . . . . . . . . Manual 77 | . 4 7 21 15 . . 8 . . . . . . 9 . . . . . . 1 . 1 11 Terminals 114 | . 4 7 28 12 1 . 15 . 2 . . . . 13 . . . 1 . . . 1 9 21 Fabricators 2 | . . . . . . . . . . . . . . 2 . . . . . . . . . . Repair Stations . | . . . . . . . . . . . . . . . . . . . . . . . . . Recycling Units 15 | . . . . 5 . . 10 . . . . . . . . . . . . . . . . . Scanalyzers 3 | . . . . . . . 2 . 1 . . . . . . . . . . . . . . . Garrison Access 2 | . . . 1 . . . . . . . . . . . . . . . . . . . . 1 Terminal Hacks 79 | . . 1 12 3 1 . 3 . 1 . . 17 . 4 . . 2 1 . . 19 1 5 9 Record 28 | . . . . . . . 1 . . . . 5 . . . . . 1 . . 19 . . 2 Part Schematic 5 | . . . 1 . . . . . . . . 4 . . . . . . . . . . . . Robot Analysis 4 | . . . . . . . . . . . . 4 . . . . . . . . . . . . Prototype ID Bank 6 | . . . 2 . . . . . . . . 4 . . . . . . . . . . . . Open Door 7 | . . . . . . . . . . . . . . . . . 2 . . . . . 1 4 Open DSF 3 | . . . . . 1 . . . 1 . . . . . . . . . . . . 1 . . Branch Access Points 4 | . . . 1 1 . . . . . . . . . 1 . . . . . . . . 1 . Emergency Access Points 1 | . . . . . . . . . . . . . . . . . . . . . . . 1 . Terminal Index 2 | . . . . 1 . . . . . . . . . 1 . . . . . . . . . . Alert Level 3 | . . . 2 . . . 1 . . . . . . . . . . . . . . . . . Unreport Threat 6 | . . 1 3 . . . . . . . . . . 2 . . . . . . . . . . Zone Layout 9 | . . . 3 1 . . 1 . . . . . . . . . . . . . . . 2 2 Activate Exoskeleton 1 | . . . . . . . . . . . . . . . . . . . . . . . . 1 Fabricator Hacks 1 | . . . . . . . . . . . . . . 1 . . . . . . . . . . Network Status 1 | . . . . . . . . . . . . . . 1 . . . . . . . . . . Repair Station Hacks . | . . . . . . . . . . . . . . . . . . . . . . . . . Recycling Unit Hacks 8 | . . . . 1 . . 7 . . . . . . . . . . . . . . . . . Recycle Component 2 | . . . . . . . 2 . . . . . . . . . . . . . . . . . Process 2 | . . . . . . . 2 . . . . . . . . . . . . . . . . . Report Inventory 1 | . . . . . . . 1 . . . . . . . . . . . . . . . . . Retrieve Matter 2 | . . . . . . . 2 . . . . . . . . . . . . . . . . . Retrieve Components 1 | . . . . 1 . . . . . . . . . . . . . . . . . . . . Scanalyzer 1 | . . . . . . . 1 . . . . . . . . . . . . . . . . . Insert Component 1 | . . . . . . . 1 . . . . . . . . . . . . . . . . . Garrison Access Hacks 2 | . . . 1 . . . . . . . . . . . . . . . . . . . . 1 Seal Access 2 | . . . 1 . . . . . . . . . . . . . . . . . . . . 1 Unauthorized Hacks 23 | . 2 3 5 7 . . 3 . . . . . . 1 . . . . . . . . . 2 Terminals 20 | . 2 3 5 4 . . 3 . . . . . . 1 . . . . . . . . . 2 Track 2 | . . . 1 1 . . . . . . . . . . . . . . . . . . . . Botnet 13 | . 1 2 3 2 . . 2 . . . . . . 1 . . . . . . . . . 2 Operators 5 | . 1 1 1 1 . . 1 . . . . . . . . . . . . . . . . . Fabricators . | . . . . . . . . . . . . . . . . . . . . . . . . . Repair Stations . | . . . . . . . . . . . . . . . . . . . . . . . . . Recycling Units 3 | . . . . 3 . . . . . . . . . . . . . . . . . . . . Monitor 1 | . . . . 1 . . . . . . . . . . . . . . . . . . . . Reject 1 | . . . . 1 . . . . . . . . . . . . . . . . . . . . Mask 1 | . . . . 1 . . . . . . . . . . . . . . . . . . . . Scanalyzers . | . . . . . . . . . . . . . . . . . . . . . . . . . Garrison Access . | . . . . . . . . . . . . . . . . . . . . . . . . . Data Cores Recovered . | . . . . . . . . . . . . . . . . . . . . . . . . . Used . | . . . . . . . . . . . . . . . . . . . . . . . . . Hacking Detections 32 | . 1 2 5 3 . . 7 . 1 . . . . 2 . . . 1 . . . . 3 7 Full Trace Events 2 | . . . . 1 . . 1 . . . . . . . . . . . . . . . . . Feedback Events . | . . . . . . . . . . . . . . . . . . . . . . . . . Feedback Blocked 1 | . . . . . . . 1 . . . . . . . . . . . . . . . . . Robot Schematics Acquired 3 | . . . . . . . . . . . . . . . . . . . . . . . 3 . Robots Built . | . . . . . . . . . . . . . . . . . . . . . . . . . Authchips . | . . . . . . . . . . . . . . . . . . . . . . . . . Time . | . . . . . . . . . . . . . . . . . . . . . . . . . Total Robot Build Rating . | . . . . . . . . . . . . . . . . . . . . . . . . . Part Schematics Acquired 9 | . . . 1 . . . . . . . . 4 . . . . . . . . . . 4 . Parts Built . | . . . . . . . . . . . . . . . . . . . . . . . . . Authchips . | . . . . . . . . . . . . . . . . . . . . . . . . . Time . | . . . . . . . . . . . . . . . . . . . . . . . . . Total Part Build Rating . | . . . . . . . . . . . . . . . . . . . . . . . . . Parts Repaired . | . . . . . . . . . . . . . . . . . . . . . . . . . Time . | . . . . . . . . . . . . . . . . . . . . . . . . . Parts Recycled 2 | . . . . . . . 2 . . . . . . . . . . . . . . . . . Recycled Matter 45 | . . . . . . . 45 . . . . . . . . . . . . . . . . . Retrieved Matter 23 | . . . . . . . 23 . . . . . . . . . . . . . . . . . Retrieved Components 3 | . . . . 3 . . . . . . . . . . . . . . . . . . . . Parts Scanalyzed . | . . . . . . . . . . . . . . . . . . . . . . . . . Part Schematics Acquired . | . . . . . . . . . . . . . . . . . . . . . . . . . Parts Damaged . | . . . . . . . . . . . . . . . . . . . . . . . . . Bothacking | -11 -10 -9 -8 -7 -6 -6 -5 -5 -5 -5 -5 -5 -4 -4 -4 -4 -4 -3 -3 -3 -3 -2 -2 -2 ------------ Run | Scr Mat Mat Mat Fac Fac DSF Fac Was Fac Upp Upp Zhi Pro Fac Upp Upp War Pro Res Arm Lab Res Qua Sec Used RIF Installer . | . . . . . . . . . . . . . . . . . . . . . . . . . Robots Hacked . | . . . . . . . . . . . . . . . . . . . . . . . . . Non-combat . | . . . . . . . . . . . . . . . . . . . . . . . . . Combat . | . . . . . . . . . . . . . . . . . . . . . . . . . Robot Hacks Applied . | . . . . . . . . . . . . . . . . . . . . . . . . . Relay Couplers Released . | . . . . . . . . . . . . . . . . . . . . . . . . . Fabnet Peak Effective % . | . . . . . . . . . . . . . . . . . . . . . . . . . Robots Rewired . | . . . . . . . . . . . . . . . . . . . . . . . . . Allies Hacked 1 | . . . . . . . . . 1 . . . . . . . . . . . . . . . Hacks Repelled . | . . . . . . . . . . . . . . . . . . . . . . . . . Allies | -11 -10 -9 -8 -7 -6 -6 -5 -5 -5 -5 -5 -5 -4 -4 -4 -4 -4 -3 -3 -3 -3 -2 -2 -2 -------- Run | Scr Mat Mat Mat Fac Fac DSF Fac Was Fac Upp Upp Zhi Pro Fac Upp Upp War Pro Res Arm Lab Res Qua Sec Total Allies 20 | . . . . . . . . 20 . . . . . . . . . . . . . . . . Largest Group 20 | . . . . . . . . 20 20 11 2 . . . . . . . . . . . . . Highest-Rated Group 685 | . . . . . . . . 685 685 456 82 . . . . . . . . . . . . . Highest-Rated Ally 50 | . . . . . . . . 50 50 50 44 . . . . . . . . . . . . . Total Orders . | . . . . . . . . . . . . . . . . . . . . . . . . . Ally Attacks 193 | . . . . . . . . . 133 58 2 . . . . . . . . . . . . . Total Damage 4562 | . . . . . . . . . 2481 1871 210 . . . . . . . . . . . . . Kills 31 | . . . . . . . . . 18 13 . . . . . . . . . . . . . . Allies Corrupted . | . . . . . . . . . . . . . . . . . . . . . . . . . Allies Melted . | . . . . . . . . . . . . . . . . . . . . . . . . . Intel | -11 -10 -9 -8 -7 -6 -6 -5 -5 -5 -5 -5 -5 -4 -4 -4 -4 -4 -3 -3 -3 -3 -2 -2 -2 ------- Run | Scr Mat Mat Mat Fac Fac DSF Fac Was Fac Upp Upp Zhi Pro Fac Upp Upp War Pro Res Arm Lab Res Qua Sec Robot Analysis Total 4 | . . . . . . . . . . . . 4 . . . . . . . . . . . . Derelict Logs Recovered 9 | . . . . . . . . . . 1 1 . 3 . 1 3 . . . . . . . . Drone Launches . | . . . . . . . . . . . . . . . . . . . . . . . . . Drone Recoveries . | . . . . . . . . . . . . . . . . . . . . . . . . . Decoded 0b10 Intel 16 | . . . . . . . . . . . . . . 3 . . . . . . . 4 5 4 Traps 1 | . . . . . . . . . . . . . . 1 . . . . . . . . . . Items 12 | . . . . . . . . . . . . . . 1 . . . . . . . 3 4 4 Machines 3 | . . . . . . . . . . . . . . 1 . . . . . . . 1 1 . Exploration | -11 -10 -9 -8 -7 -6 -6 -5 -5 -5 -5 -5 -5 -4 -4 -4 -4 -4 -3 -3 -3 -3 -2 -2 -2 ------------- Run | Scr Mat Mat Mat Fac Fac DSF Fac Was Fac Upp Upp Zhi Pro Fac Upp Upp War Pro Res Arm Lab Res Qua Sec Turns Passed 5059 | 62 353 652 179 97 29 84 366 133 276 277 63 54 165 91 150 77 555 447 19 1 292 146 200 291 Spaces Moved 8138 | 43 173 397 469 243 88 128 686 185 462 459 202 131 457 233 329 243 939 584 35 1 121 227 507 796 Core 207 | 1 . 2 . . . . . . . . . . . . . . . . . . 78 37 . 89 Treads . | . . . . . . . . . . . . . . . . . . . . . . . . . Legs 498 | 37 168 293 . . . . . . . . . . . . . . . . . . . . . . Wheels 10 | 5 5 . . . . . . . . . . . . . . . . . . . . . . . Hover 340 | . . . . . . . 56 185 99 . . . . . . . . . . . . . . . Flight 7083 | . . 102 469 243 88 128 630 . 363 459 202 131 457 233 329 243 939 584 35 1 43 190 507 707 Fastest Speed 18 | 50 100 31 27 27 27 27 27 50 27 29 29 29 28 30 24 24 19 19 18 22 22 29 24 22 Average Speed 37 | 116 121 98 27 27 27 27 32 54 33 29 29 29 28 30 27 27 30 21 18 22 136 58 28 30 Slowest Speed 250 | 120 190 250 31 27 27 27 62 62 50 29 29 29 30 30 32 28 108 22 22 22 200 200 32 92 Overloaded Moves . | . . . . . . . . . . . . . . . . . . . . . . . . . Propulsion Burnouts . | . . . . . . . . . . . . . . . . . . . . . . . . . Robots Hopped 46 | . . . 3 1 1 1 3 . 1 . . . . 2 . 1 3 . . . . . 14 16 Cave-ins Triggered 1 | . . . . . . . 1 . . . . . . . . . . . . . . . . . Teleports 4 | . . . . . . . . . . . . . . . . . . . . 1 . . . 3 Exploration Rate (%) 44 | 4 36 43 34 7 4 90 16 82 14 69 39 60 60 8 58 53 91 76 2 . 96 10 51 70 Regions Visited 24 Branch Regions 12 Pre-discovered Areas 4 | . . . . . . . . . . 1 . 3 . . . . . . . . . . . . Known Exits Taken 15 | . . . . . 1 . . . 1 1 1 1 1 1 1 1 1 1 1 1 1 1 . . Unknown Exits Taken 6 | 1 1 1 1 1 . . . . . . . . . . . . . . . . . . 1 . Scrap Searched 9 | . . . . . . . . . . 1 2 . 3 . 1 1 . 1 . . . . . . Spaces Dug 38 | . . . 3 4 . . 9 . . . . . . 3 . . . 7 2 . . . 1 9 Terrain Destroyed 85 | . . . 3 4 . 9 11 . 2 . . . 10 3 . . . 7 2 . 24 . 1 9 Melee 29 | . . . 3 4 . . 9 . . . . . . 3 . . . 7 2 . . . 1 . Projectile 17 | . . . . . . . 2 . 2 . . . 10 . . . . . . . 2 . . 1 AOE 39 | . . . . . . 9 . . . . . . . . . . . . . . 22 . . 8 Terrain Rammed 1 | . . . . . . . . . . . . . . . . . . . . . . . . 1 Walls Destroyed . | . . . . . . . . . . . . . . . . . . . . . . . . . Machines Disabled 1 | . . . . . . . . . . . . . . . . . . . . . . . . 1 Actions | -11 -10 -9 -8 -7 -6 -6 -5 -5 -5 -5 -5 -5 -4 -4 -4 -4 -4 -3 -3 -3 -3 -2 -2 -2 --------- Run | Scr Mat Mat Mat Fac Fac DSF Fac Was Fac Upp Upp Zhi Pro Fac Upp Upp War Pro Res Arm Lab Res Qua Sec Total 9620 | 52 245 552 499 259 91 174 777 216 569 603 205 146 479 242 362 247 1200 889 39 1 185 236 529 823 Wait 836 | . 5 17 5 . . . 30 26 53 140 . . 3 . 16 . 239 294 . . . . . 8 Move 8029 | 42 172 396 462 240 85 125 680 184 459 458 201 130 456 228 328 240 933 583 34 . 120 226 480 767 Hop 40 | . . . 3 1 1 1 3 . 1 . . . . 2 . 1 2 . . . . . 12 13 Pick Up 64 | 2 7 5 9 3 1 2 5 3 12 1 . 3 . . . 1 4 1 . . 1 . 1 3 Fast Attach 109 | 7 5 16 1 2 1 2 11 . 4 1 2 5 2 1 5 . 9 2 . . 7 8 6 12 Attach 44 | . 3 4 2 2 1 . 7 1 2 . . . . 2 3 . . . 1 1 3 . 3 9 Detach 12 | 1 1 . . . . . 1 . 1 . . . . . . 1 1 . . . 2 . 1 3 Swap 32 | . 4 7 4 . 1 2 2 . 2 1 . 1 2 3 . 1 . . . . 1 . 1 . Drop 93 | . 3 16 5 3 1 5 4 1 14 2 2 7 4 1 . 1 11 2 . . 3 2 2 4 Fire 247 | . 45 91 5 . . 1 16 1 20 . . . 12 . . . 1 . . . 43 . 9 3 Melee 67 | . . . 3 8 . . 18 . . . . . . 5 10 2 . 7 4 . 5 . 5 . Ram 1 | . . . . . . . . . . . . . . . . . . . . . . . . 1 Kick . | . . . . . . . . . . . . . . . . . . . . . . . . . Crush . | . . . . . . . . . . . . . . . . . . . . . . . . . Escape Stasis 45 | . . . . . . 36 . . . . . . . . . . . . . . . . 9 . Rewire 1 | . . . . . . . . . 1 . . . . . . . . . . . . . . . Trap . | . . . . . . . . . . . . . . . . . . . . . . . . . Miscellaneous . | . . . . . . . . . . . . . . . . . . . . . . . . . Route ------- -11/Scrapyard -10/Materials -9/Materials -8/Materials (discovered 2 exits: *Fac / *Sto) -7/Factory (discovered 3 exits: *Fac / Low x2) -6/Factory -6/DSF -5/Factory -5/Waste -5/Factory -5/Upper Caves -5/Upper Caves -5/Zhirov -4/Proximity Caves -4/Factory (discovered 2 exits: *Upp x2) -4/Upper Caves -4/Upper Caves (discovered 2 exits: Res / *War) -4/Warlord -3/Proximity Caves -3/Research (discovered 3 exits: Res / *Arm / Tes) -3/Armory -3/Lab -2/Research -2/Quarantine (discovered 2 exits: [*Acc] / *Sec) -2/Section 7 History --------- Turn | Location | Event 15 | -11/Scrapyard | Discovered new exit (range 15) 63 | -11/Scrapyard | Entered Materials 186 | -10/Materials | Lost 5 parts (1p2n2w) 336 | -10/Materials | Discovered new exit (range 16) 369 | -10/Materials | Core integrity fell below 50% 416 | -10/Materials | Entered another Materials area 416 | -9/Materials | Evolved 2 slots: Propulsion x2 613 | -9/Materials | Lost 3 parts (2n1u) 896 | -9/Materials | Build established: Scavenger-Mutant 1055 | -9/Materials | Discovered new exit (range 16) 1068 | -9/Materials | Entered another Materials area 1068 | -8/Materials | Evolved 2 slots: Propulsion x1, Utility x1 1089 | -8/Materials | Discovered new exit (range 11) 1137 | -8/Materials | Discovered new exit (range 11) 1223 | -8/Materials | Identified exit to Storage 1247 | -8/Materials | Entered Factory 1247 | -7/Factory | Evolved 2 slots: Utility x2 1282 | -7/Factory | Discovered new exit (range 13) 1282 | -7/Factory | Identified exit to Lower Caves 1344 | -7/Factory | Entered another Factory area 1344 | -6/Factory | Evolved 2 slots: Propulsion x1, Utility x1 1373 | -6/Factory | Identified exit to DSF 1373 | -6/Factory | Entered DSF 1396 | -6/DSF | Additional patrols routed to DSF 1452 | -6/DSF | Discovered new exit (range 17) 1457 | -6/DSF | Entered Factory 1457 | -5/Factory | Evolved 2 slots: Utility x2 1538 | -5/Factory | Build established: Hacker-Sprinter 1583 | -5/Factory | Crushed by falling debris 1583 | -5/Factory | System corruption reached 10% 1614 | -5/Factory | Lost 5 parts (2n3u) 1823 | -5/Factory | Sucked down chute 1823 | -5/Factory | Entered Waste 1824 | -5/Waste | Joined by Warlord forces that had cleared the area 1907 | -5/Waste | Discovered new exit (range 16) 1930 | -5/Waste | Identified exit to Factory 1956 | -5/Waste | Entered Factory 1956 | -5/Factory | Accompanied by 20 allies 2052 | -5/Factory | P-70 Sage assimilated allied LN-PP8(s) 2183 | -5/Factory | Discovered new exit (range 16) 2187 | -5/Factory | Identified exit to Upper Caves 2232 | -5/Factory | Entered Upper Caves 2232 | -5/Upper Caves | Accompanied by 11 allies 2275 | -5/Upper Caves | Learned location of Armory (-3) 2355 | -5/Upper Caves | Attracted the attention of an 0b10 checkpoint 2376 | -5/Upper Caves | Spotted B-75 Beast 2444 | -5/Upper Caves | Discovered new exit (range 14) 2452 | -5/Upper Caves | Identified exit to Upper Caves 2509 | -5/Upper Caves | Entered another Upper Caves area 2509 | -5/Upper Caves | Accompanied by 2 allies 2511 | -5/Upper Caves | Attracted the attention of an 0b10 checkpoint 2511 | -5/Upper Caves | Learned Factory emergency access door positions 2569 | -5/Upper Caves | Discovered new exit (range 10) 2572 | -5/Upper Caves | Identified exit to Zhirov 2572 | -5/Upper Caves | Entered Zhirov 2572 | -5/Zhirov | Discovered new exit (range 3) 2578 | -5/Zhirov | Met Zhirov 2583 | -5/Zhirov | Learned location of Quarantine (-2) 2583 | -5/Zhirov | Learned location of Testing (-3) 2583 | -5/Zhirov | Learned location of Command (-1) 2588 | -5/Zhirov | Zhirov requested help retrieving the SGEMP Prototype 2595 | -5/Zhirov | Found Alien Artifact 2595 | -5/Zhirov | Identified Integrated Dissipator 2595 | -5/Zhirov | Installed Integrated Dissipator, increased core heat dissipation (+20) 2610 | -5/Zhirov | Found Alien Artifact 2625 | -5/Zhirov | Identified exit to Proximity Caves 2626 | -5/Zhirov | Entered Proximity Caves 2629 | -4/Proximity Caves | Learned Research stockpile data 2664 | -4/Proximity Caves | Learned 12 Research zone layouts 2727 | -4/Proximity Caves | Learned Research trap positions 2788 | -4/Proximity Caves | Discovered new exit (range 7) 2790 | -4/Proximity Caves | Identified exit to Factory 2791 | -4/Proximity Caves | Entered Factory 2791 | -4/Factory | Evolved 2 slots: Propulsion x1, Utility x1 2831 | -4/Factory | Identified exit to Upper Caves 2846 | -4/Factory | Spotted B-86 Titan 2882 | -4/Factory | Entered Upper Caves 2970 | -4/Upper Caves | Lost 8 parts (5n2u1w) 3028 | -4/Upper Caves | Discovered new exit (range 14) 3030 | -4/Upper Caves | Learned location of 1 exit from Research 3032 | -4/Upper Caves | Identified exit to Upper Caves 3032 | -4/Upper Caves | Entered another Upper Caves area 3065 | -4/Upper Caves | Learned Research emergency access door positions 3074 | -4/Upper Caves | Identified exit to Research 3106 | -4/Upper Caves | Discovered new exit (range 13) 3109 | -4/Upper Caves | Identified exit to Warlord 3109 | -4/Upper Caves | Entered Warlord 3154 | -4/Warlord | Found Prototype Special Weapon 3154 | -4/Warlord | Identified RU-N14's Throwing Claymores v3 3157 | -4/Warlord | Found RU-N14's Throwing Claymores v3 3159 | -4/Warlord | Found RU-N14's Throwing Claymores v3 3175 | -4/Warlord | Visited the Vortex Lab 3176 | -4/Warlord | Found Prototype Energy Gun 3176 | -4/Warlord | Identified Vortex Shotgun 3179 | -4/Warlord | Found Prototype Energy Gun 3179 | -4/Warlord | Identified Vortex Rifle 3197 | -4/Warlord | Warlord's base attacked by MAIN.C 3258 | -4/Warlord | Met Warlord 3335 | -4/Warlord | Opened side exit 3503 | -4/Warlord | Spotted Striker 3547 | -4/Warlord | Warlord forces counterattacked 3574 | -4/Warlord | Spotted Executioner 3595 | -4/Warlord | Discovered new exit (range 19) 3597 | -4/Warlord | Spotted Executioner 3663 | -4/Warlord | Identified exit to Proximity Caves 3664 | -4/Warlord | Entered Proximity Caves 3750 | -3/Proximity Caves | Spotted B-86 Titan 3792 | -3/Proximity Caves | Build established: Scavenger-Scout 4110 | -3/Proximity Caves | Discovered exit to Research (range 5) 4111 | -3/Proximity Caves | Entered Research 4111 | -3/Research | Evolved 2 slots: Propulsion x1, Utility x1 4112 | -3/Research | Identified exit to Research 4113 | -3/Research | Identified exit to Armory 4113 | -3/Research | Identified exit to Testing 4114 | -3/Research | Loaded intel: 85 trap records 4130 | -3/Research | Entered Armory 4130 | -3/Armory | Identified Transdimensional Reconstructor 4130 | -3/Armory | Warped through subspace to slip node 4130 | -3/Armory | Discovered new exit (range 1) 4130 | -3/Armory | Identified exit to Lab 4131 | -3/Armory | Entered Lab 4131 | -3/Lab | Discovered exit to Research (range 9) 4134 | -3/Lab | Unable to decrypt terminal 4134 | -3/Lab | Opened the door to a hidden lab 4135 | -3/Lab | Gained access to the hidden lab's interior 4136 | -3/Lab | Detected by scanners 4136 | -3/Lab | Found Alien Artifact 4136 | -3/Lab | Identified Core Reset Matrix 4136 | -3/Lab | Used Core Reset Matrix 4140 | -3/Lab | Sensed 3 artifacts in vicinity 4142 | -3/Lab | Found Transdimensional Reconstructor 4149 | -3/Lab | Found Integrated Mediator 4149 | -3/Lab | Installed Integrated Mediator, increased core attachment efficiency. 4157 | -3/Lab | Found Core Regenerator 4157 | -3/Lab | Used Core Regenerator, restored core integrity (+128) 4161 | -3/Lab | Confronted by A5 4258 | -3/Lab | Destroyed A5 4284 | -3/Lab | Lost 11 parts (1p7n2u1w) 4302 | -3/Lab | Found Prototype Hackware 4302 | -3/Lab | Identified Deep Network Scanner 4307 | -3/Lab | Found Prototype Protection 4307 | -3/Lab | Identified Hvy. Regenerative Plating 4313 | -3/Lab | Found Prototype Energy Gun 4313 | -3/Lab | Identified Hyp. EM Gauss Rifle 4319 | -3/Lab | Found Prototype Energy Gun 4319 | -3/Lab | Identified Tachyon Dispersion Ray 4341 | -3/Lab | Unable to decrypt terminal 4377 | -3/Lab | Discovered exit to Research (range 19) 4423 | -3/Lab | Entered Research 4423 | -2/Research | Warlord forces began assault on 0b10 4423 | -2/Research | Evolved 2 slots: Power x1, Utility x1 4533 | -2/Research | Research machine network offline 4562 | -2/Research | Discovered new exit (range 20) 4569 | -2/Research | Identified exit to Quarantine 4569 | -2/Research | Entered Quarantine 4570 | -2/Quarantine | Detected hypermatrix surge 4570 | -2/Quarantine | Sensed 18 artifacts in vicinity 4577 | -2/Quarantine | Scanned by Researcher 4586 | -2/Quarantine | Found Core Stripper 4619 | -2/Quarantine | Garrison activated, responded to threat 4685 | -2/Quarantine | Met incapacitated Sigix Warrior 4685 | -2/Quarantine | Lockdown squad dispatched 4709 | -2/Quarantine | Lost 4 parts (1p1n1u1w) 4709 | -2/Quarantine | Found Core Reset Matrix 4729 | -2/Quarantine | Discovered new exit (range 15) 4746 | -2/Quarantine | Spotted Fortress 4760 | -2/Quarantine | Lost 3 parts (3n) 4768 | -2/Quarantine | Discovered new exit (range 6) 4769 | -2/Quarantine | Entered Section 7 4770 | -2/Section 7 | Sensed 23 artifacts in vicinity 4805 | -2/Section 7 | Build established: Hacker-Sprinter 4848 | -2/Section 7 | Spotted S7 Guard 4849 | -2/Section 7 | Spotted S7 Guard 4885 | -2/Section 7 | Spotted Alpha 7 4885 | -2/Section 7 | Spotted Alpha 7 4889 | -2/Section 7 | Spotted B-99 Colossus 4919 | -2/Section 7 | Spotted Executioner 4924 | -2/Section 7 | Warped through subspace 4941 | -2/Section 7 | Found Transdimensional Reconstructor 4943 | -2/Section 7 | Found Transdimensional Reconstructor 4948 | -2/Section 7 | Found Terrabomb 4950 | -2/Section 7 | Spotted Executioner 4950 | -2/Section 7 | Spotted Executioner 4954 | -2/Section 7 | Lost 8 parts (2p3n2u1w) 4961 | -2/Section 7 | Intercept squad dispatched 4964 | -2/Section 7 | Warped through subspace 4977 | -2/Section 7 | Core integrity fell below 50% 4981 | -2/Section 7 | Spotted Tracker 4981 | -2/Section 7 | Spotted Tracker 4982 | -2/Section 7 | Warped through subspace 4983 | -2/Section 7 | Used Terrabomb 4989 | -2/Section 7 | Core integrity fell below 20% 5004 | -2/Section 7 | Found Integrity Redistributor 5004 | -2/Section 7 | Used Integrity Redistributor, redistributed integrity to core (+32) 5006 | -2/Section 7 | Found Integrity Redistributor 5006 | -2/Section 7 | Used Integrity Redistributor, redistributed integrity to core (+13) 5019 | -2/Section 7 | Search patrols dispatched 5023 | -2/Section 7 | Found LRC Energy Well 5023 | -2/Section 7 | Installed LRC Energy Well, increased energy storage capacity (+250) 5027 | -2/Section 7 | Found LRC Matter Compressor 5027 | -2/Section 7 | Installed LRC Matter Compressor, increased matter storage capacity (+125) 5029 | -2/Section 7 | Found LRC Boosters 5029 | -2/Section 7 | Installed LRC Boosters, increased mass support (+10) 5035 | -2/Section 7 | Lost 7 parts (1p3n2u1w) 5060 | -2/Section 7 | Destroyed by Alpha 7 with Multirail Last Messages --------------- patrol. 05020_ Connecting with Door Terminal... >>Open(Door) Sealed Heavy Doors opened. 05023_ Acquired LRC Energy Well. 05023_ LRC Energy Well installed, energy storage capacity increased (+250). 05027_ Acquired LRC Matter Compressor. 05027_ LRC Matter Compressor installed, matter storage capacity increased (+125). 05029_ Acquired LRC Boosters. 05029_ LRC Boosters installed, mass support increased (+10). 05048_ System corrupted: Heat flow error (+211). 05057_ Slug penetrates Reinforced Barrier. 05057_ H-88 Terminator destroyed. 05057_ Machine disabled. 05057_ Penetrated by Slug. 05059_ Destroyed Unknown Device. 05059_ H-88 Terminator destroyed. 05060_ Penetrated by Slug. Map ----- +----------------------------------------------------+ | """""" """++" ""################################# | | " " " " #????????????????????????????????? | | """" " " #????????????????????????????????? | | " " #?????????????????????????????????? | | " " ##################????????????????? | | " "#?#"""""" """""#????????????????? | | " "#?#"""""" """""#????????????????? | | " ##?#"""""" "#????????????????? | | """"""""""" #### " """""#????????????????? | | """""#????????????????? | | """""#????????????????? | | """"""#########" """""#????????????????? | | " ###???????#"" "#????????????????? | | ""###?????????#" " "#????????????????? | | """"#?????????#"""""""" """ "#????????????????? | | """#?????????######### # ####????????????????? | | """#?????????????????# ###???????????????????? | | """#?????????????????# #?????????????????????? | | """#?????????????????# #?????????????????????? | | """#?????????????????# #?????????????????????? | | """#?###############?# #?????????????????????? | | """"#?#"""""""""""""#?# #?????????????????????? | | """#?#"" """" #?# #?????????????????????? | | """"#?#"" " #?# #?????????????????????? | | #####?#"" ### #?????????????????????? | | #?????#" @ #?????????????????????? | | #?????# % #?????????????????????? | | #?????# 7 %* ######?????????????????????? | | ####### 7 " ""#??????????????????????????? | | " ""#??????????????????????????? | | "" ""#??????????????????????????? | | #########" """ ""#??????????????????????????? | | ????????#""" """"""""#??????????????????????????? | | ????????##### #########??????????????????????????? | | ????????????# #??????????????????????????????????? | | ???????????## #####??????????????????????????????? | | ???????????# "" #??????????????????????????????? | | ???????????#" #??????????????????????????????? | | ????????????#######??????????????????????????????? | | ?????????????????????????????????????????????????? | | ?????????????????????????????????????????????????? | | ?????????????????????????????????????????????????? | | | | | | | | | | | | | | | | | +----------------------------------------------------+ Best States ------------- Heat Dissipation 69 Energy Generation 35 Energy Capacity 395 Matter Stores 300 Matter Capacity 425 Sight Range 22 Robot Scan Range 16 Terrain Scan Range 16 Terrain Scan Density 85 Additional Mass Support 12 Armor Coverage 225 Utility Shielding 66 Evasion (%) 77 Core Analysis 6 Armor Integrity Analysis 30 Offensive Hacking 25 Defensive Hacking 10 Authchip Count 3 Item Schematics ----------------- Exp. Biometal Heavy Treads | -2/Quarantine | Archive Exp. Gyrokinetic Inverter | -2/Quarantine | Archive Exp. ECM Suite | -2/Quarantine | Archive Exp. EM Disruption Field | -2/Quarantine | Archive Robot Schematics ------------------ R-10 Processor | -2/Quarantine | Archive H-77 Assassin | -2/Quarantine | Archive A-27 Freighter | -2/Quarantine | Archive Fabricated ------------ Nothing Alien Tech Used ----------------- Integrated Dissipator Transdimensional Reconstructor Core Reset Matrix Integrated Mediator Core Regenerator Core Stripper Terrabomb Integrity Redistributor LRC Energy Well LRC Matter Compressor LRC Boosters Achievements -------------- False Reunion Challenges ------------ None Game ------ Seed BoreGuidanceReconstructor Manual? 0 Play Time 01:37:18 Cumulative 122.5 hours Start 2022.12.03 @ 22:33:27 End 2022.12.04 @ 00:20:13 Sessions 1 Manual Loads 0 Difficulty Rogue Special Mode None Game No. 216 Rogue 216 Adventurer 0 Explorer 0 Win Type - Total 2 Types 1/0/1/0/0/0/0/0/0 Lore% 64 Gallery% 72 Achievement% 53 Wizard Run 0 Options --------- ASCII 0 Keyboard 0 Movement Mouse Keybinds 0 Fullscreen 1 Font 18/SmallcapsGlow Map View 76x50 Tactical HUD 1 Map Filters NONE Filters NONE Steam 1 RUN: 589a7162-b84b-4f7a-bcfa-3f8d3febde5a